Cogmind - Beta 13 @@@ ROGUE MODE // 2024.04.22 @ 17:17:22 Player: lucky255 Result: Destroyed by G-34 Mercenary with Small Laser Performance ------------- Evolutions (1) 500 Regions Visited (3) 600 Robots Destroyed (23) 115 Value Destroyed (577) 577 Prototype IDs (0) 0 Alien Tech Used (0) 0 Bonus (135) 135 TOTAL SCORE: 1927 Bonus ------- Follower Combat Kills 135 Cogmind --------- Core Integrity 0/400 Matter 298/300 Energy 154/160 System Corruption 0% Temperature Cool (15) Movement Walking (120) Location -9/Materials Parts ------- > --- POWER (1) -------- Light Nuclear Core > --- PROPULSION (3) --- Aluminum Leg Aluminum Leg Aluminum Leg > --- UTILITY (3) ------ Heat Sink Signal Interpreter Seismic Detector > --- WEAPON (2) ------- Flak Cannon Katana > --- INVENTORY (5) ---- Experimental Sensor Array Flak Cannon Flak Cannon Katana Katana Peak State ------------ > --- POWER ------------ Light Nuclear Core > --- PROPULSION ------- Aluminum Leg Aluminum Leg Aluminum Leg > --- UTILITY ---------- Heat Sink Signal Interpreter Seismic Detector > --- WEAPON ----------- Flak Cannon Katana > --- INVENTORY -------- Experimental Sensor Array Flak Cannon Flak Cannon Katana Katana [Rating: 17] Favorites ----------- Power Ion Engine Engine Ion Engine Power Core Light Nuclear Core Propulsion Light Treads Treads Light Treads Leg Aluminum Leg Utility Seismic Detector Device Seismic Detector Storage Small Storage Unit Processor Signal Interpreter Protection Power Shielding Weapon Light Assault Rifle Energy Gun Small Laser Ballistic Gun Light Assault Rifle Ballistic Cannon Flak Cannon Launcher Grenade Launcher Impact Weapon Heavy Hammer Slashing Weapon Katana Build | -11 -10 -10 -9 ------- Run | Yrd Mat Min Mat Slots Evolved 2 | . . . 2 Power . | . . . . Propulsion 1 | . . . 1 Utility 1 | . . . 1 Weapon . | . . . . Parts Attached 29 | 6 4 1 18 Power 3 | 1 . . 2 Engine 2 | 1 . . 1 Core 1 | . . . 1 Reactor . | . . . . Propulsion 7 | 2 . . 5 Treads 4 | 2 . . 2 Leg 3 | . . . 3 Wheel . | . . . . Hover . | . . . . Flight . | . . . . Utility 8 | 1 4 . 3 Device 4 | . 2 . 2 Storage 2 | 1 1 . . Processor 1 | . . . 1 Hackware . | . . . . Protection 1 | . 1 . . Artifact . | . . . . Weapon 11 | 2 . 1 8 Energy Gun 2 | 1 . 1 . Energy Cannon . | . . . . Ballistic Gun 3 | 1 . . 2 Ballistic Cannon 1 | . . . 1 Launcher 2 | . . . 2 Special Weapon . | . . . . Impact Weapon 2 | . . . 2 Slashing Weapon 1 | . . . 1 Piercing Weapon . | . . . . Special Melee Weapon . | . . . . Unidentified Prototypes . | . . . . Parts Lost 8 | . . . 8 Power 2 | . . . 2 Propulsion 2 | . . . 2 Utility 1 | . . . 1 Weapon 3 | . . . 3 Highest Loss Streak 3 | . . . 3 To Critical Strikes . | . . . . Average Slot Usage (%) 91 | . 97 100 85 Engine 8 | . 14 14 4 Core 2 | . . . 5 Treads 18 | . 28 28 8 Leg 7 | . . . 14 Device 13 | . 11 14 14 Storage 3 | . 8 . . Processor 5 | . . . 10 Protection 6 | . 6 14 5 Energy Gun 8 | . 14 14 2 Ballistic Gun 11 | . 14 14 8 Impact Weapon 4 | . . . 7 Naked Turns . | . . . . Heaviest Build 28 | 12 28 11 15 Greatest Support 40 | 40 40 40 40 Greatest Overweight (x) 3 | 1 . . 3 Average Overweight (x) . | . . . . Largest Inventory Capacity 15 | 8 15 5 5 Average Capacity 6 | 7 7 5 5 Most Carried 5 | 3 5 5 5 Average Carried 3 | . 3 5 2 Final Capacity 8 | 8 5 5 5 Final Carried 5 | 1 5 5 5 Class Distribution -------------------- 75% | Mutant 24% | Scavenger-Mutant Dominant Class ---------------- Mutant | -10/Materials Mutant | -10/Mines Mutant | -9/Materials Resources | -11 -10 -10 -9 ----------- Run | Yrd Mat Min Mat Matter Collected 583 | 207 121 10 245 Remotely . | . . . . Salvage Created 624 | . 244 . 380 Parts 39 | . 14 . 25 Haulers Intercepted . | . . . . Recyclers Shooed . | . . . . Parts Field Recycled . | . . . . Retrieved Matter . | . . . . Parts Self-Destructed . | . . . . Prevented . | . . . . Kills | -11 -10 -10 -9 ------- Run | Yrd Mat Min Mat Combat Hostiles Destroyed 18 | . 7 . 11 Melee 3 | . . . 3 Guns 12 | . 7 . 5 AOE 2 | . . . 2 Classes Destroyed 7 | . 3 . 4 Worker 1 | . . . 1 Operator 1 | . . . 1 Watcher 3 | . 2 . 1 Swarmer 7 | . 3 . 4 Grunt 8 | . 4 . 4 Duelist 1 | . . . 1 Sentry 2 | . . . 2 Best Kill Streak 3 | . 2 . 3 Combat Bots Only 2 | . 2 . 2 Max Kills in Single Turn 1 | . 1 . 1 Gunslinging . | . . . . Exploded 1 | . . . 1 Melee 1 | . . . 1 Uniques/NPCs Destroyed . | . . . . Combat | -11 -10 -10 -9 -------- Run | Yrd Mat Min Mat Hostile Shots Fired 133 | . 54 1 78 Missed 33 | . 11 . 22 Damage Taken 1439 | . 436 13 990 Core 530 | . 124 . 406 Absorbed by Shields . | . . . . Redirected to Shielding 50 | . 12 . 38 Core Remaining (%) 75 | 100 . 50 . Volleys Fired 59 | . 28 . 31 Largest 2 | . 2 . 2 Hottest 85 | . 60 . 85 Shots Fired 99 | . 56 . 43 Gun 94 | . 56 . 38 Cannon . | . . . . Launcher 5 | . . . 5 Special . | . . . . Kinetic 49 | . 28 . 21 Thermal 45 | . 28 . 17 Explosive 5 | . . . 5 Electromagnetic . | . . . . Robot Hit Streak 14 | . 14 . 7 Robot Miss Streak 5 | . 3 . 5 Penetration Max . | . . . . Secondary Targets 2 | . 2 . . Max Gunslinging Chain 1 | . 1 . . Shots Hit Robots 70 | . 33 . 37 Core Hits 38 | . 18 . 20 Critical Kills . | . . . . Critical Parts Destroyed 2 | . . . 2 Critical Strikes 3 | . . . 3 Burn 1 | . . . 1 Smash 2 | . . . 2 Melee Attacks 14 | . . . 14 Impact 9 | . . . 9 Slashing 5 | . . . 5 Piercing . | . . . . Sneak Attacks 1 | . . . 1 Combat Hostiles . | . . . . Follow-up Attacks . | . . . . Damage Inflicted 1180 | . 326 3 851 Guns 664 | . 326 . 338 Cannons . | . . . . Explosions 164 | . . . 164 Melee 349 | . . . 349 Ramming 3 | . . 3 . Kinetic 308 | . 128 . 180 Thermal 356 | . 198 . 158 Explosive 164 | . . . 164 Electromagnetic . | . . . . Impact 230 | . . . 230 Slashing 119 | . . . 119 Piercing . | . . . . Highest Corruption . | . . . . Average Corruption . | . . . . Corruption Purged . | . . . . Corruption Blocked . | . . . . Overload Shots . | . . . . Overflow Damage 122 | . . . 122 Projectiles . | . . . . Explosions 4 | . . . 4 Melee 118 | . . . 118 Knockbacks 2 | . . . 2 Impact 2 | . . . 2 Kinetic . | . . . . Secondary . | . . . . Self-Inflicted Damage 50 | . . . 50 Shots 4 | . . . 4 Rammed 1 | . . 1 . Targets Rammed 1 | . . 1 . Kicked . | . . . . Crushed . | . . . . Highest Temperature 114 | . 114 . 101 Average Temperature 41 | . 41 . 41 Received Heat Transfer 309 | . 135 . 174 Siege Activations . | . . . . Robots Corrupted . | . . . . Combat Hostiles . | . . . . Parts Fried 2 | . . . 2 Impact Corruptions 4 | . . . 4 Robots Melted . | . . . . Combat Hostiles . | . . . . Parts Melted 2 | . 1 . 1 Heat Transferred 931 | . 450 . 481 Parts Sabotaged . | . . . . Parts Stolen . | . . . . Parts Stripped . | . . . . Power Chain Reactions . | . . . . Alert | -11 -10 -10 -9 ------- Run | Yrd Mat Min Mat Peak Influence 316 | . 162 63 316 Initial 63 | . . 63 24 Average 113 | . 45 63 180 Maximum Alert Level 1 | . . . 1 Low Security (%) 70 | 100 100 100 40 Level 1 29 | . . . 59 Level 2 . | . . . . Level 3 . | . . . . Level 4 . | . . . . Level 5 . | . . . . High Security . | . . . . Max Security . | . . . . Squads Dispatched 4 | . 1 . 3 Investigation . | . . . . Extermination . | . . . . Reinforcement 4 | . 1 . 3 Assault . | . . . . Garrison . | . . . . Intercept . | . . . . Searches Triggered . | . . . . Construction Impeded . | . . . . Haulers Reinforced . | . . . . Active Scanning Responses . | . . . . Cargo Convoy Interrupts . | . . . . Stealth | -11 -10 -10 -9 --------- Run | Yrd Mat Min Mat Distress Signals 2 | . . 1 1 Communications Jammed . | . . . . Distress Signals . | . . . . Times Spotted 49 | . 16 9 24 Peak Tracking Total 7 | . 3 7 3 Tactical Retreats 3 | . 2 . 1 Traps | -11 -10 -10 -9 ------- Run | Yrd Mat Min Mat Traps Triggered 1 | . 1 . . Indirectly . | . . . . Trap Hack Attempts . | . . . . Triggered . | . . . . Disarmed . | . . . . Reprogrammed . | . . . . Reused . | . . . . Traps Extracted . | . . . . Installed . | . . . . Triggered . | . . . . Machines | -11 -10 -10 -9 ---------- Run | Yrd Mat Min Mat Machines Disabled 2 | . . . 2 Max in Single Turn 1 | . . . 1 Machines Repaired . | . . . . Machines Dismantled . | . . . . Machines Sabotaged . | . . . . Overloaded Fab Kills . | . . . . Hacking | -11 -10 -10 -9 --------- Run | Yrd Mat Min Mat Machines Accessed 4 | . 2 . 2 Terminals 4 | . 2 . 2 Fabricators . | . . . . Repair Stations . | . . . . Recycling Units . | . . . . Scanalyzers . | . . . . Garrison Access . | . . . . Total Hacks 15 | . 6 . 9 Successful 9 | . 4 . 5 Failed 6 | . 2 . 4 Catastrophic 1 | . . . 1 Database Lockouts . | . . . . Manual 7 | . 3 . 4 Terminals 15 | . 6 . 9 Fabricators . | . . . . Repair Stations . | . . . . Recycling Units . | . . . . Scanalyzers . | . . . . Garrison Access . | . . . . Terminal Hacks 9 | . 4 . 5 Record 1 | . 1 . . Alert Level 2 | . . . 2 Locate Traps 1 | . 1 . . Dispatch Records 1 | . . . 1 Recall Investigation 1 | . . . 1 Hauler Manifests 1 | . 1 . . Zone Layout 2 | . 1 . 1 Fabricator Hacks . | . . . . Repair Station Hacks . | . . . . Recycling Unit Hacks . | . . . . Scanalyzer . | . . . . Garrison Access Hacks . | . . . . Unauthorized Hacks . | . . . . Terminals . | . . . . Fabricators . | . . . . Repair Stations . | . . . . Recycling Units . | . . . . Scanalyzers . | . . . . Garrison Access . | . . . . Data Cores Recovered . | . . . . Used . | . . . . Hacking Detections 4 | . 2 . 2 Full Trace Events 2 | . . . 2 Feedback Events . | . . . . Feedback Blocked . | . . . . Robot Schematics Acquired . | . . . . Robots Built . | . . . . Authchips . | . . . . Time . | . . . . Total Robot Build Rating . | . . . . Part Schematics Acquired . | . . . . Parts Built . | . . . . Authchips . | . . . . Time . | . . . . Total Part Build Rating . | . . . . Parts Repaired . | . . . . Time . | . . . . Parts Recycled . | . . . . Recycled Matter . | . . . . Retrieved Matter . | . . . . Retrieved Components . | . . . . Parts Scanalyzed . | . . . . Part Schematics Acquired . | . . . . Parts Damaged . | . . . . Bothacking | -11 -10 -10 -9 ------------ Run | Yrd Mat Min Mat Used RIF Installer . | . . . . Robots Hacked . | . . . . Non-combat . | . . . . Combat . | . . . . Robot Hacks Applied . | . . . . Relay Couplers Released . | . . . . Fabnet Peak Effective % . | . . . . Robots Rewired . | . . . . Allies Hacked . | . . . . Hacks Repelled . | . . . . Allies | -11 -10 -10 -9 -------- Run | Yrd Mat Min Mat Total Allies 2 | . . 2 . Largest Group 2 | . . 2 2 Highest-Rated Group 45 | . . 45 45 Highest-Rated Ally 31 | . . 31 31 Total Orders . | . . . . Ally Attacks 40 | . . 4 36 Total Damage 459 | . . 62 397 Kills 7 | . . . 7 Allies Corrupted . | . . . . Allies Melted . | . . . . Intel | -11 -10 -10 -9 ------- Run | Yrd Mat Min Mat Robot Analysis Total . | . . . . Derelict Logs Recovered . | . . . . Drone Launches . | . . . . Drone Recoveries . | . . . . Exploration | -11 -10 -10 -9 ------------- Run | Yrd Mat Min Mat Turns Passed 1823 | 68 633 213 909 Spaces Moved 822 | 38 327 131 326 Core 19 | 6 . . 13 Treads 707 | 32 327 131 217 Legs 96 | . . . 96 Wheels . | . . . . Hover . | . . . . Flight . | . . . . Fastest Speed 50 | 50 160 160 50 Average Speed 155 | 146 160 160 149 Slowest Speed 200 | 160 160 160 200 Overloaded Moves . | . . . . Propulsion Burnouts . | . . . . Robots Hopped . | . . . . Cave-ins Triggered . | . . . . Exploration Rate (%) 28 | 4 44 38 29 Regions Visited 3 Branch Regions 1 Pre-discovered Areas . | . . . . Known Exits Taken . | . . . . Unknown Exits Taken 3 | 1 1 1 . Scrap Searched . | . . . . Spaces Dug . | . . . . Terrain Destroyed 12 | . . . 12 Melee . | . . . . Projectile . | . . . . AOE 12 | . . . 12 Terrain Rammed . | . . . . Walls Destroyed . | . . . . Machines Disabled . | . . . . Actions | -11 -10 -10 -9 --------- Run | Yrd Mat Min Mat Total 1261 | 50 388 134 689 Wait 289 | . 18 . 271 Move 820 | 37 326 131 326 Hop . | . . . . Pick Up 36 | 7 8 1 20 Fast Attach . | . . . . Attach 26 | 6 3 . 17 Detach 4 | . 1 . 3 Swap 3 | . 1 1 1 Drop 10 | . 3 1 6 Fire 59 | . 28 . 31 Melee 14 | . . . 14 Ram . | . . . . Kick . | . . . . Crush . | . . . . Escape Stasis . | . . . . Rewire . | . . . . Trap . | . . . . Miscellaneous . | . . . . Route ------- -11/Scrapyard -10/Materials -10/Mines -9/Materials (discovered 2 exits: [*Mat] / [*Min]) History --------- Turn | Location | Event 8 | -11/Scrapyard | Discovered new exit (range 16) 69 | -11/Scrapyard | Entered Materials 309 | -10/Materials | Build established: Mutant 665 | -10/Materials | Discovered new exit (range 16) 702 | -10/Materials | Entered Mines 872 | -10/Mines | Found a damaged Exp. Sensor Array with a note attached 877 | -10/Mines | Found Prototype Device 889 | -10/Mines | Assembled infested the area 894 | -10/Mines | Assisted by a Guerilla fighting off Assembled 896 | -10/Mines | Discovered new exit (range 10) 915 | -10/Mines | Entered Materials 915 | -9/Materials | Accompanied by 2 allies 915 | -9/Materials | Evolved 2 slots: Propulsion x1, Utility x1 920 | -9/Materials | Led the pair of lost Derelicts to an unsafe place 1146 | -9/Materials | Lost 3 parts (1p2w) 1239 | -9/Materials | Discovered new exit (range 15) 1368 | -9/Materials | Core integrity fell below 50% 1382 | -9/Materials | Core integrity fell below 20% 1684 | -9/Materials | Build established: Scavenger-Mutant 1813 | -9/Materials | Discovered new exit (range 8) 1824 | -9/Materials | Destroyed by G-34 Mercenary with Small Laser Last Messages --------------- 01750_ Dropped Hvy. Hammer. 01753_ Acquired Katana. 01756_ Acquired Flak Cannon. 01760_ Acquired Particle Charger. 01762_ Dropped Particle Charger. 01768_ Acquired Katana. 01772_ Acquired Flak Cannon. 01774_ Acquired Katana. 01781_ Acquired Flak Cannon. 01804_ Destroyed Flight Unit. 01807_ S-10 Pest destroyed. 01809_ M-13 Machinist fits Backup Propulsion I on S-10 Pest. 01811_ Destroyed Backup Propulsion I. 01811_ K-01 Serf cleans the Machine. 01813_ EXIT=FOUND 01817_ S-10 Pest destroyed. 01817_ K-01 Serf collects debris. 01819_ Acquired 18 matter. 01821_ K-01 Serf collects debris. Map ----- +----------------------------------------------------+ | ?????????????????????????????????????????????????? | | ?????????????????????????????????????????????????? | | ?????????????????????????????????????????????????? | | ?????????????????????????????????????????????????? | | ?????????????????????????????????????????????????? | | ?????????????????????????????????????????????????? | | ???????????????????????!!????????????????????????? | | ???????????????????????!!??? ???????????????????? | | ??????????????????????? ??? ??????????????????? | | ??????????????????????? ### ??????????????????? | | ??????????????????????? ""?????????????????? | | ??????????????????????? """??? ????????????? | | ??????????????????????? """"" ????????????? | | ???????????????????????# """ ?????????????? | | ???????????????????????# ???????????????? | | ???????????????????????# ???????????????? | | ???????????????????????# ""????????????????? | | ???????????????????????+ """"???????????????? | | ???????????????????????# """""??????????????? | | ???????????????????????# """""? #???????????? | | ?????#####???########### k """ #???????????? | | ?????#!! #???# [! [+ * #???????????? | | ?????#! !#???# [[ %## u #???????????? | | ?????# ] ##### ! =## ##### ????????? | | ?????# # ## ####?????####?????????? | | ?????# / / # @ """#??????????????????? | | ?????#/ [ #""" # "#??????????????????? | | ?????##### #""" # !"#??????????????????? | | ?????????# #""" # < ""#??????????????????? | | ?????????# # # |"#??????????????????? | | ?????????# ########## "#??????????????????? | | ?????????# #????????# """#??????????????????? | | ########## ########?## gg####??????????????????? | | # #??# #?????????????????????? | | + #??# ?????????????????????? | | """" """" # #??# ?????????????????????? | | """" """" # #??# a ?????????????????????? | | """" """" # #??#%###?????????????????????? | | # #??? ????????????????????????? | | ########??? ????????????????????????? | | #??????????%????????????????????????? | | ########???????????????????????????????????? | | ### #??#####???????????????????????????????????? | | ## #?? !????????????????????????????????????? | | ## #? #???????????????????????????????????? | | ## #?""" #???????????????????????????????????? | | ## # """ #???????????????????????????????????? | | ## # """ #????????+ ???????????????????????? | | ## % + """ #????????# ???????????????????????? | | ## # """ #????????# ???????????????????????? | +----------------------------------------------------+ Best States ------------- Heat Dissipation 38 Energy Generation 14 Energy Capacity 250 Matter Stores 300 Matter Capacity 300 Sight Range 16 Terrain Scan Density 10 Power Shielding 33 Evasion (%) 55 Recoil Reduction 2 Item Schematics ----------------- None Robot Schematics ------------------ None Fabricated ------------ Nothing Alien Tech Used ----------------- None Achievements -------------- Shopping List Challenges ------------ None Game ------ Seed InsulationStealthCalibrator Manual? 0 Play Time 00:28:31 Cumulative 5.7 hours Start 2024.04.22 @ 16:49:03 End 2024.04.22 @ 17:17:22 Sessions 3 Manual Loads 0 Difficulty Rogue Special Mode None Game No. 6 Rogue 6 Adventurer 0 Explorer 0 Win Type - Total 0 Types 0/0/0/0/0/0/0/0/0 Lore% 14 Gallery% 10 Achievement% 11 Wizard Run 0 Options --------- Layout 2 ASCII 0 Keyboard 1 Movement Numpad Keybinds 0 Fullscreen 1 Font 32/SmallcapsGlow Map View 50x44 Zoom Use 1% Tactical HUD 1 Map Filters NONE Filters NONE Steam 1 RUN: fb601971-a00e-4a98-a557-001e2db984f7